[Event "FIDE Zonal 4-2 Open 2023"]
[Site "Dimbroko"]
[Date "2023.03.30"]
[Round "8.6"]
[White "Thomas, Saah"]
[Black "Egbe, Kossi Thierry"]
[Result "1/2-1/2"]
[ECO "B12"]
[WhiteElo "1916"]
[BlackElo "1740"]
[Annotator "TA"]
[PlyCount "101"]
[EventDate "2023.03.25"]
[EventType "swiss"]
[EventCountry "IVO"]
[SourceTitle "playchess.com"]
[Source "ChessBase"]
[SourceQuality "1"]
[TimeControl "40/5400+30:1800+30"]

{[%evp 9,101,-17,-14,-16,-14,-16,18,-23,-3,0,45,-19,18,26,19,24,13,45,70,61,64,75,81,52,59,53,218,-26,-37,-54,0,0,17,0,343,-40,-36,-38,-42,-110,-110,-110,-107,-110,-110,-110,-110,-82,-82,-82,-71,-172,-168,-243,-248,-346,-337,-343,-328,-306,-271,-272,-234,-179,0,-191,-48,-479,-312,-318,-298,-295,-302,-256,0,0,0,0,0,0,0,0,0,0,0,0,0,0,0,-54,-54,-54,-54,-55]} 1. e4 {[%emt 0:00:01]} c6 {[%emt 0:00:21]} 2. d4 {[%emt 0:00:03]} d5 {[%emt 0:00:07]} 3. f3 {[%emt 0:00:06]} g6 {[%emt 0:01:03]} 4. Bd3 {[%emt 0:01:35]} Bg7 {[%emt 0:00:44]} 5. e5 {[%emt 0:00:03] [#]} c5 $1 {[%emt 0:02:58]} 6. c3 {[%emt 0:00:04] B12: Caro-Kann: Advance Variation.} Nc6 {[%emt 0:00:26]} 7. Ne2 {[%emt 0:00:07]} e6 {[%emt 0:03:02] [#]} 8. b3 $146 {[%emt 0:01:16] The position is equal.} (8. dxc5 Nxe5 9. Na3 Nxd3+ 10. Qxd3 a6 $15) ({Predecessor:} 8. Be3 Nge7 {½-½ Dimitrijevic,R (2268)-Zlatkovic,M (2102) Belgrade-chT 2014 (2.5)}) 8... Nge7 {[%emt 0:01:16]} 9. O-O {[%emt 0:00:58]} (9. dxc5 Nxe5 10. O-O O-O $17) 9... a6 {[%emt 0:00:53]} 10. Bg5 {[%emt 0:00:23]} (10. dxc5 Nxe5 11. Bc2 N5c6 $15) (10. Ba3 $14) 10... Qc7 {[%emt 0:00:37]} 11. f4 {[%emt 0:00:29]} (11. dxc5 Nxe5 12. Be3 Nxd3 13. Qxd3 h5 $17) 11... cxd4 {[%emt 0:04:24]} 12. cxd4 {[%emt 0:01:04]} (12. Nxd4 Nxd4 13. cxd4 Qb6 $15) 12... Nb4 {[%emt 0:01:10]} 13. Nbc3 {[%emt 0:00:06]} Nxd3 {[%emt 0:00:30]} 14. Qxd3 {[%emt 0:00:01][%cal Of4f5]} Nc6 {[%emt 0:07:11]} 15. Rac1 {[%emt 0:00:17][%cal Of4f5] White is more active.} Bd7 {[%emt 0:00:13]} 16. g4 {[%emt 0:00:25][%cal Of4f5]} h6 {[%emt 0:02:14]} 17. Bh4 {[%emt 0:00:13]} h5 $2 {[%emt 0:00:09]} (17... Bf8 $14) 18. gxh5 $2 {[%emt 0:01:28]} (18. f5 $1 $18 {[%cal Rf5g6]} gxf5 19. gxf5) 18... Rxh5 $11 {[%emt 0:00:52]} 19. Bg5 {[%emt 0:00:03]} Qb6 {[%emt 0:01:31]} ({Black should try} 19... Qa5 $1 $15) 20. Na4 {[%emt 0:00:30]} Qa7 {[%emt 0:06:35][%cal Oc6e5] Strongly threatening ...Nxe5!} 21. Qe3 {[%emt 0:00:21]} Ne7 $2 {[%emt 0:03:45][%mdl 8192] [#]} (21... Bf8 $11 {and Black is okay.}) 22. Rc7 $2 {[%emt 0:00:58]} ({Only move:} 22. Bxe7 $1 $18 Kxe7 23. Rc7) 22... Nf5 $15 {[%emt 0:01:55]} 23. Qf2 {[%emt 0:00:10]} Bc6 {[%emt 0:00:51]} 24. Rc1 {[%emt 0:00:45]} (24. Ng3 $15) 24... Qb8 $17 {[%emt 0:04:26]} 25. R7xc6 {[%emt 0:00:03]} bxc6 {[%emt 0:00:33]} 26. Rxc6 {[%emt 0:00:01]} Qb7 $36 {[%emt 0:01:37][%mdl 2048] Black has strong initiative.} 27. Rc2 {[%emt 0:00:39]} Bf8 {[%emt 0:00:39]} 28. Ng3 {[%emt 0:00:30]} Nxg3 {[%emt 0:00:32]} 29. hxg3 {[%emt 0:00:19]} Rc8 {[%emt 0:00:18]} 30. Kg2 {[%emt 0:00:33]} (30. Qd2 $17) 30... Rc6 $19 {[%emt 0:06:23]} 31. g4 {[%emt 0:00:36]} (31. Bf6 {keeps fighting.}) 31... Rh7 {[%emt 0:00:25]} 32. Nc5 {[%emt 0:00:43]} Bxc5 {[%emt 0:00:26]} 33. dxc5 {[%emt 0:00:30]} Qb4 {[%emt 0:02:12] Dodges Qd4} 34. Qe3 {[%emt 0:00:09]} Kd7 {[%emt 0:08:22]} 35. Bf6 {[%emt 0:01:49]} Kc7 {[%emt 0:02:08]} 36. Be7 {[%emt 0:02:40]} Kd7 $2 {[%emt 0:04:14]} (36... Kb7 $19 {White must now prevent ...Qa5.} 37. Rc1 Qa5) 37. Bd6 $2 {[%emt 0:00:18] [#]} (37. Bf6 $11) 37... g5 {[%emt 0:00:59]} 38. a3 $2 {[%emt 0:00:07][%mdl 8192]} (38. Rf2 $1 $15) 38... Qxa3 {[%emt 0:02:52]} (38... Qxf4 39. Qxf4 gxf4 40. Rf2 $17) 39. fxg5 {[%emt 0:00:35]} Qa1 {[%emt 0:00:12] ( -> ...Qh1+)} 40. Qg1 {[%emt 0:05:23] Repels Qh1+} Qxg1+ {[%emt 0:04:04]} 41. Kxg1 {[%emt 0:30:07][%mdl 4096] Endgame KRR-KRB} Rh3 $2 {[%emt 0:31:08]} (41... Rc8 $19 {Hoping for ...Rch8.} 42. Ra2 Ra8) 42. Rf2 $11 {[%emt 0:00:08]} Ke8 {[%emt 0:02:28]} (42... Rxb3 43. Rxf7+ Ke8 44. Re7+ Kd8 45. Kf2 $18) 43. g6 {[%emt 0:00:07]} fxg6 {[%emt 0:05:02][%cal Oc6c8]} (43... Rxb3 {gets mated.} 44. gxf7+ Kd7 45. f8=Q (45. f8=B Rg3+ 46. Kf1 Rxg4 $18) 45... Rb1+ 46. Kg2) 44. Rf6 {[%emt 0:00:04]} Rg3+ {[%emt 0:07:59]} 45. Kf2 {[%emt 0:00:03]} Rxg4 {[%emt 0:00:18]} ({Much less strong is} 45... Rxb3 46. Rxe6+ Kf7 47. Rf6+ Kg7 48. Bf8+ Kg8 49. Rxc6 $18) 46. Rxe6+ {[%emt 0:00:03]} Kd7 {[%emt 0:04:01]} 47. Re7+ {[%emt 0:00:24]} Kd8 {[%emt 0:00:29]} 48. Rg7 {[%emt 0:00:40]} Re4 {[%emt 0:01:34]} 49. Rxg6 {[%emt 0:00:08]} (49. Rg8+ $11 Kd7 50. Rg7+ Ke6 51. Kf3 (51. Rxg6+ Kf5 $15)) 49... Rxe5 $1 $15 {[%emt 0:00:35]} 50. Rg8+ {[%emt 0:01:36]} Re8 {[%emt 0:00:17]} 51. Rg5 {[%emt 0:00:38] Whites escaped into a draw.   Weighted Error Value: White=0.49/Black=0.48} 1/2-1/2

[Event "FIDE Zonal 4-2 Open 2023"]
[Site "Dimbroko"]
[Date "2023.03.30"]
[Round "8.7"]
[White "Harold Evans"]
[Black "James, Tondo"]
[Result "0-1"]
[ECO "B13"]
[WhiteElo "1714"]
[BlackElo "1867"]
[Annotator "NA RC COMBH"]
[PlyCount "82"]
[EventDate "2023.03.25"]
[EventType "swiss"]
[EventCountry "IVO"]
[SourceTitle "playchess.com"]
[Source "ChessBase"]
[SourceQuality "1"]
[TimeControl "40/5400+30:1800+30"]

1. e4 {[%emt 0:00:03]} c6 {[%emt 0:00:09]} 2. d4 {[%emt 0:00:52]} d5 {[%emt 0:00:15]} 3. exd5 {[%emt 0:00:35]} cxd5 {[%emt 0:00:11]} 4. Nc3 {[%emt 0:00:31]} Bf5 {[%emt 0:00:24]} 5. Bd3 {[%emt 0:00:18]} Bg6 {[%emt 0:00:40]} 6. Nf3 {[%emt 0:00:22]} e6 {[%emt 0:00:06]} 7. Be3 {[%emt 0:00:33]} Bb4 {[%emt 0:00:29]} 8. Bxg6 {[%emt 0:01:21]} hxg6 {[%emt 0:00:02]} 9. Qd3 {[%emt 0:00:33]} Qa5 {[%emt 0:00:56]} 10. Bd2 {[%emt 0:00:22]} Nc6 {[%emt 0:01:11]} 11. a3 {[%emt 1:30:30]} Nge7 {[%emt 1:31:37]} 12. O-O {[%emt 0:00:00]} Bd6 {[%emt 0:00:00]} 13. h3 {[%emt 0:00:00]} a6 {[%emt 0:00:00]} 14. b4 {[%emt 0:00:00]} Qc7 {[%emt 0:00:00]} 15. b5 {[%emt 0:00:00]} Na5 {[%emt 0:00:00]} 16. bxa6 {[%emt 0:00:00]} bxa6 {[%emt 0:02:30]} 17. Rfb1 {[%emt 0:03:00]} Nc4 {[%emt 0:00:00]} 18. Rb3 {[%emt 0:00:00]} O-O {[%emt 0:00:00]} 19. Nd1 {[%emt 0:00:00]} Rfc8 {[%emt 0:00:00]} 20. c3 {[%emt 0:01:30]} Nc6 {[%emt 0:00:00]} 21. a4 {[%emt 0:00:00]} N6a5 {[%emt 0:00:00]} 22. Rbb1 {[%emt 0:00:00]} Rab8 {[%emt 0:00:00]} 23. Be1 {[%emt 0:00:00]} Qc6 {[%emt 0:00:00]} 24. g3 {[%emt 0:00:00]} Rxb1 {[%emt 0:00:00]} 25. Qxb1 {[%emt 0:00:00]} Rb8 {[%emt 0:00:00]} 26. Qd3 {[%emt 0:00:00]} Rb3 {[%emt 0:00:00]} 27. Ng5 {[%emt 0:00:00]} Be7 {[%emt 0:00:00]} 28. h4 {[%emt 0:00:00]} e5 {[%emt 0:06:00]} 29. dxe5 {[%emt 0:00:00]} Nxe5 {[%emt 0:00:00]} 30. Qe2 $17 {[%emt 0:00:00]} Nac4 {[%emt 0:00:00]} 31. f4 {[%emt 0:00:00]} f6 {[%emt 0:00:00]} 32. Nh3 {[%emt 0:00:00]} Bc5+ {[%emt 0:00:00]} 33. Bf2 {[%emt 0:00:00]} Nf7 {[%emt 0:00:00]} 34. Qc2 {[%emt 0:00:00]} Rb8 {[%emt 0:00:00]} 35. Qxg6 {[%emt 0:00:00]} Bxf2+ {[%emt 0:00:00]} 36. Nhxf2 {[%emt 0:00:00]} Re8 {[%emt 0:00:00]} 37. Qd3 {[%emt 0:00:00]} Re1+ {[%emt 0:00:00]} 38. Kg2 {[%emt 0:00:00]} d4+ {[%emt 0:00:00]} 39. Kh3 {[%emt 0:00:00]} Rxd1 40. Nxd1 {[%emt 0:00:00]} Qh1+ {[%emt 0:00:00]} 41. Kg4 {[%emt 0:00:00]} Nfe5+ {[%emt 0:00:00]} 0-1

[Event "FIDE Zonal 4-2 Open 2023"]
[Site "Dimbroko"]
[Date "2023.03.30"]
[Round "8.8"]
[White "Mambe, Lobognon Anderson Ol"]
[Black "Amako Marc Arnold"]
[Result "0-1"]
[ECO "B33"]
[WhiteElo "1916"]
[BlackElo "1647"]
[Annotator "TA"]
[PlyCount "76"]
[EventDate "2023.03.25"]
[EventType "swiss"]
[EventCountry "IVO"]
[SourceTitle "playchess.com"]
[Source "ChessBase"]
[SourceQuality "1"]
[TimeControl "40/5400+30:1800+30"]

{[%evp 20,76,-43,-40,-29,-34,-5,-18,0,-30,-37,-103,-102,-322,-326,-314,-341,-385,-366,-364,-361,-367,-361,-350,-356,-489,-360,-402,-387,-383,-318,-449,0,-658,-533,-509,-311,-484,-484,-29957,-29961,-5239,-5235,-2307,-833,-630,-632,-29987,-29988,-29988,-29989,-29988,29984,-29988,-29989,-29994,-29988,-29991,-29988]} 1. e4 {[%emt 0:00:03]} c5 {[%emt 0:00:12]} 2. Nf3 {[%emt 0:00:20]} Nc6 {[%emt 0:00:21]} 3. d4 {[%emt 0:01:03]} cxd4 {[%emt 0:00:17]} 4. Nxd4 {[%emt 0:00:16]} Nf6 {[%emt 0:00:13]} 5. Nc3 {[%emt 0:00:20]} e5 {[%emt 0:00:11]} 6. Nb3 {[%emt 0:00:23]} Bb4 {[%emt 0:00:30]} 7. Bd3 {[%emt 0:00:36]} d5 {[%emt 0:00:51]} 8. exd5 {[%emt 0:01:35]} Nxd5 {[%emt 0:00:14]} 9. Bd2 {[%emt 0:00:18]} Bxc3 {[%emt 0:00:31]} 10. Bxc3 {[%emt 0:00:13]} Nxc3 {[%emt 0:00:11]} 11. bxc3 {[%emt 0:00:07]} O-O {[%emt 0:00:22][%cal Oe5e4] B33: Sicilian: Pelikan and Sveshnikov Variations.} 12. O-O {[%emt 0:00:09] [#]} Qh4 $146 {[%emt 0:00:20]} ({Predecessor:} 12... Qc7 13. Re1 Ne7 14. Qe2 f6 15. c4 Ng6 16. Bxg6 hxg6 17. h3 Be6 18. c5 Bxb3 19. cxb3 Qxc5 {0-1 Huang,L (1488)-Weiss,D (1759) GER-chT U16 Kiel 2022 (4.7)}) 13. Qf3 {[%emt 0:02:11]} f5 {[%emt 0:00:42][%cal Bf7f5,Bf5f4][%mdl 32] The position is equal.} 14. Rab1 {[%emt 0:02:03]} Kh8 {[%emt 0:00:52] And now ...e4 would win.} 15. Nc5 {[%emt 0:02:17]} (15. Qe2 $15) 15... Qe7 $17 {[%emt 0:00:56]} 16. Nb3 {[%emt 0:01:37]} (16. Qe3 $17) 16... e4 $19 {[%emt 0:00:14]} 17. Qe2 {[%emt 1:25:29]} exd3 {[%emt 1:32:03]} 18. Qxd3 {[%emt 0:00:00]} f4 {[%emt 0:00:00]} 19. Rfe1 {[%emt 0:00:00]} Qg5 {[%emt 0:00:00]} 20. Nd4 {[%emt 0:00:00]} Nxd4 {[%emt 0:00:00][%mdl 64] Remove Defender} 21. cxd4 {[%emt 0:00:00]} Bf5 {[%emt 0:00:00]} ({Not} 21... f3 $2 22. Qxf3 Qd8 23. Qc3 $19) 22. Qb3 {[%emt 0:00:00]} Rac8 {[%emt 0:00:00]} 23. Rbc1 {[%emt 0:00:00]} Rfe8 {[%emt 0:00:00]} 24. c4 {[%emt 0:00:00]} Be4 {[%emt 0:00:00][%csl Ge4][%cal Rg5g2]} 25. Qh3 {[%emt 0:00:00]} (25. f3 $142 Bg6 26. c5) 25... Bf5 $2 {[%emt 0:00:00]} (25... f3 $19 26. Re3 Bd5 {[%mdl 64] Pin, Back Rank}) 26. Rxe8+ $4 {[%emt 0:00:00][%mdl 8192]} (26. Qb3 $1 $11 {and White has nothing to worry.} h6 27. Qc3) 26... Rxe8 {[%emt 0:00:00]} 27. Qf3 {[%emt 0:00:00]} Bg4 {[%emt 0:00:00]} 28. Qxb7 {[%emt 0:00:00]} (28. h4 $142 Qxh4 29. Qxf4) 28... f3 {[%emt 0:00:00][%cal Rg5c1]} 29. Rb1 {[%emt 0:00:00]} (29. Ra1 $19 fxg2 30. Qb4) 29... Bh5 {[%emt 0:00:00][%csl Gf3][%cal Rg5g2]} 30. g3 {[%emt 0:06:30]} Qg4 {[%emt 0:06:30]} 31. Kh1 {[%emt 0:00:00]} Qh3 {[%emt 0:00:00]} (31... h6 $142 32. Qb4 Qxd4) 32. Rg1 {[%emt 0:00:00]} h6 {[%emt 0:00:00][%cal Oe8e1] ( -> ...Re1!)} 33. d5 {[%emt 0:01:30] [#]} Re1 $3 {[%emt 0:01:30][%csl Gf3][%cal Rh3g2][%mdl 576] Deflection} 34. Qc8+ {[%emt 0:00:00]} Qxc8 {[%emt 0:00:00]} 35. Rxe1 {[%emt 0:00:00] [#]} Qc6 $4 {[%emt 0:01:00][%mdl 8192]} 36. c5 $4 {[%mdl 8192]} (36. dxc6 {was the only winning move.} Bg4 37. Re8+ Kh7 38. c7 a5 39. c8=Q Bxc8 40. Rxc8 Kg6 41. c5) 36... Qxc5 {[%emt 0:00:00] Black mates.} 37. Rd1 {[%emt 0:00:00]} Qc4 {[%emt 0:00:00]} 38. d6 {[%emt 0:00:00]} Bg4 {[%emt 0:00:00] A brilliant game!   Weighted Error Value: White=1.14/Black=0.70} ({And not} 38... Qxa2 39. d7 Qxf2 40. d8=Q+ Kh7 41. Qd3+ Kh8 42. Qd8+ Kh7 43. Qd3+ Bg6 44. Qd2 $17) 0-1

[Event "FIDE Zonal 4-2 Open 2023"]
[Site "Dimbroko"]
[Date "2023.03.30"]
[Round "8.9"]
[White "David Leroy Debblay"]
[Black "Ble, Kouko Hubert"]
[Result "1-0"]
[ECO "B04"]
[WhiteElo "1823"]
[BlackElo "1825"]
[Annotator "NA RC COMBH"]
[PlyCount "87"]
[EventDate "2023.03.25"]
[EventType "swiss"]
[EventCountry "IVO"]
[SourceTitle "playchess.com"]
[Source "ChessBase"]
[SourceQuality "1"]
[TimeControl "40/5400+30:1800+30"]

1. e4 {[%emt 0:00:04]} Nf6 {[%emt 0:00:13]} 2. e5 {[%emt 0:00:12]} Nd5 {[%emt 0:00:10]} 3. c4 {[%emt 0:00:07]} Nb6 {[%emt 0:00:07]} 4. d4 {[%emt 0:00:08]} d6 {[%emt 0:00:09]} 5. Nf3 {[%emt 0:00:02]} Bg4 {[%emt 0:02:32]} 6. exd6 {[%emt 0:00:07]} cxd6 {[%emt 0:00:35]} 7. Be3 {[%emt 0:00:24]} g6 {[%emt 0:00:17]} 8. Nbd2 {[%emt 0:00:23]} Bg7 {[%emt 0:00:12]} 9. Be2 {[%emt 0:00:20]} O-O {[%emt 0:00:35]} 10. h3 {[%emt 0:00:11]} Bd7 {[%emt 0:01:30]} 11. O-O {[%emt 0:00:09]} Nc6 {[%emt 0:01:08]} 12. Rc1 {[%emt 0:01:24]} d5 {[%emt 0:07:26]} 13. b3 {[%emt 0:05:17]} f5 {[%emt 0:01:44]} 14. c5 {[%emt 0:04:50]} Nc8 {[%emt 0:00:14]} 15. Bf4 {[%emt 0:00:15]} Nxd4 {[%emt 0:00:52]} 16. Nxd4 {[%emt 0:00:12]} Bxd4 {[%emt 0:00:01]} 17. Nf3 {[%emt 0:00:15]} Bg7 {[%emt 0:00:12]} 18. Qxd5+ {[%emt 0:00:23]} e6 {[%emt 0:00:27]} 19. Qxb7 {[%emt 0:00:02]} Ne7 {[%emt 0:00:11]} 20. c6 {[%emt 0:00:47]} Qc8 {[%emt 0:03:07]} 21. Qxd7 {[%emt 0:00:12]} Nd5 {[%emt 0:02:05]} 22. Be5 {[%emt 0:00:14]} Rf7 {[%emt 0:02:34]} 23. Qxc8+ {[%emt 0:00:57]} Rxc8 {[%emt 0:00:01]} 24. Bxg7 {[%emt 0:00:22]} Kxg7 {[%emt 0:00:52]} 25. Ne5 {[%emt 0:00:03]} Re7 {[%emt 0:00:17]} 26. Bf3 {[%emt 0:00:23]} Nf6 {[%emt 0:01:04]} 27. Rfd1 {[%emt 0:00:23]} Rcc7 {[%emt 0:00:08]} 28. b4 {[%emt 0:00:04]} h5 {[%emt 0:00:38]} 29. a4 {[%emt 0:00:26]} g5 {[%emt 0:00:19]} 30. b5 {[%emt 0:00:14]} g4 {[%emt 0:00:14]} 31. hxg4 {[%emt 0:00:22]} hxg4 {[%emt 1:16:06]} 32. Be2 {[%emt 1:27:18]} Nd5 {[%emt 0:00:00]} 33. Bc4 {[%emt 0:00:00]} Nf4 {[%emt 0:00:00]} 34. a5 {[%emt 0:00:00]} Kf6 {[%emt 0:00:00]} 35. Nd7+ {[%emt 0:00:00]} Kg5 {[%emt 0:02:00]} 36. Bf1 {[%emt 0:02:00]} Rc8 {[%emt 0:00:00]} 37. g3 {[%emt 0:00:00]} Nd5 {[%emt 0:00:00]} 38. Bg2 {[%emt 0:00:00]} Rh8 {[%emt 0:00:00]} 39. Rxd5 {[%emt 0:00:00]} exd5 {[%emt 0:02:00]} 40. Bxd5 {[%emt 0:02:00]} f4 {[%emt 0:00:00]} 41. gxf4+ {[%emt 0:00:00]} Kxf4 {[%emt 0:31:00]} 42. b6 {[%emt 0:31:00]} g3 {[%emt 0:00:00]} 43. fxg3+ {[%emt 0:00:00]} Kxg3 {[%emt 0:00:00]} 44. b7 {[%emt 0:01:00]} 1-0

[Event "FIDE Zonal 4-2 Open 2023"]
[Site "Dimbroko"]
[Date "2023.03.30"]
[Round "8.10"]
[White "Joel O. Ebiekuta"]
[Black "Foday W. Kondoh"]
[Result "1/2-1/2"]
[ECO "C02"]
[WhiteElo "1855"]
[BlackElo "1727"]
[Annotator "NA RC COMBH"]
[PlyCount "134"]
[EventDate "2023.03.25"]
[EventType "swiss"]
[EventCountry "IVO"]
[SourceTitle "playchess.com"]
[Source "ChessBase"]
[SourceQuality "1"]
[TimeControl "40/5400+30:1800+30"]

1. d4 {[%emt 0:00:17]} Nc6 {[%emt 0:00:22]} 2. Nf3 {[%emt 0:01:28]} e6 {[%emt 0:00:42]} 3. e4 {[%emt 0:01:00]} d5 {[%emt 0:01:01]} 4. e5 {[%emt 0:03:09]} f5 {[%emt 0:00:24]} 5. exf6 {[%emt 0:00:12]} Nxf6 {[%emt 0:00:30]} 6. Bd3 {[%emt 0:00:53]} Bd6 {[%emt 0:00:37]} 7. O-O {[%emt 0:01:38]} O-O {[%emt 0:01:25]} 8. Re1 {[%emt 0:02:06]} Qe8 {[%emt 0:02:48]} 9. c3 {[%emt 0:01:01]} Qh5 {[%emt 0:00:57]} 10. Nbd2 {[%emt 0:00:28]} Bd7 {[%emt 0:01:26]} 11. Nf1 {[%emt 0:00:03]} Rae8 {[%emt 0:00:27]} 12. Ng3 {[%emt 0:00:43]} Bxg3 {[%emt 0:00:32]} 13. fxg3 {[%emt 0:00:33]} e5 {[%emt 0:01:59]} 14. Nxe5 {[%emt 0:04:13]} Qxd1 {[%emt 0:00:21]} 15. Rxd1 {[%emt 0:00:50]} Nxe5 {[%emt 0:00:24]} 16. dxe5 {[%emt 0:00:02]} Rxe5 {[%emt 0:00:17]} 17. Bf4 {[%emt 0:01:00]} Re6 {[%emt 0:06:01]} 18. Bxc7 {[%emt 0:00:08]} Bc6 {[%emt 0:01:50]} 19. Re1 {[%emt 0:04:33]} Rfe8 {[%emt 0:00:14]} 20. Rxe6 {[%emt 0:02:57]} Rxe6 {[%emt 0:00:04]} 21. Bf4 {[%emt 0:00:53]} g6 {[%emt 0:00:35]} 22. h3 {[%emt 0:01:02]} Kg7 {[%emt 0:00:32]} 23. Kf1 {[%emt 0:01:17]} Nd7 {[%emt 0:00:30]} 24. Re1 {[%emt 0:01:26]} Kf6 {[%emt 0:02:30]} 25. Rxe6+ {[%emt 0:01:27]} Kxe6 {[%emt 0:00:03]} 26. Kf2 {[%emt 0:00:09]} a6 {[%emt 0:01:29]} 27. Ke3 {[%emt 0:00:42]} Nc5 $16 {[%emt 0:16:20]} 28. Be2 {[%emt 0:04:14]} Na4 {[%emt 0:04:52]} 29. Kd4 {[%emt 0:00:39]} Nxb2 {[%emt 0:01:01]} 30. Bg4+ {[%emt 0:00:48]} Ke7 {[%emt 0:01:53]} 31. h4 {[%emt 0:01:18]} h5 {[%emt 0:03:01]} 32. Be2 {[%emt 0:00:48]} Na4 {[%emt 0:00:17]} 33. g4 {[%emt 0:00:26]} hxg4 {[%emt 0:00:27]} 34. Bxg4 {[%emt 0:00:10]} Nb6 {[%emt 0:00:26]} 35. h5 {[%emt 0:01:10]} gxh5 {[%emt 0:00:23]} 36. Bxh5 {[%emt 0:00:15]} Kf6 {[%emt 0:07:54]} 37. Bf3 {[%emt 0:02:40]} Kf5 {[%emt 0:00:24]} 38. Bc7 {[%emt 0:00:27]} Na4 {[%emt 0:00:26]} 39. g4+ {[%emt 0:01:22]} Kg5 {[%emt 0:00:11]} 40. Be2 {[%emt 0:01:34]} Bb5 {[%emt 0:02:40]} 41. Bd8+ {[%emt 0:30:33]} Kf4 {[%emt 0:34:12]} 42. Bxb5 {[%emt 0:03:31]} axb5 {[%emt 0:39:03]} 43. g5 {[%emt 0:57:55]} Kf5 {[%emt 0:00:00]} 44. Bf6 {[%emt 0:00:00]} Ke6 {[%emt 0:00:00]} 45. Bd8 {[%emt 0:00:00]} Kf5 {[%emt 0:00:00]} 46. Be7 {[%emt 0:00:00]} Ke6 {[%emt 0:00:00]} 47. Ba3 {[%emt 0:00:00]} b6 {[%emt 0:00:00]} 48. Bc1 {[%emt 0:00:00]} Nc5 {[%emt 0:00:00]} 49. Ba3 {[%emt 0:00:00]} Ne4 {[%emt 0:00:00]} 50. Bc1 {[%emt 0:00:00]} Ng3 {[%emt 0:00:00]} 51. Kd3 {[%emt 0:00:00]} Kf5 {[%emt 0:00:00]} 52. Be3 {[%emt 0:00:00]} Ne4 {[%emt 0:00:00]} 53. Kd4 {[%emt 0:00:00]} Ke6 {[%emt 0:00:00]} 54. Bc1 {[%emt 0:00:00]} Nd6 {[%emt 0:00:00]} 55. Kd3 {[%emt 0:00:00]} Kf5 {[%emt 0:00:00]} 56. Kc2 {[%emt 0:00:00]} Nf7 {[%emt 0:00:00]} 57. Kb3 {[%emt 0:00:00]} Ne5 {[%emt 0:00:00]} 58. Kc2 {[%emt 0:00:00]} Ke4 {[%emt 0:00:00]} 59. Ba3 {[%emt 0:00:00]} Kf5 {[%emt 0:00:00]} 60. Bc1 {[%emt 0:00:00]} Ke4 {[%emt 0:00:00]} 61. Kb3 {[%emt 0:00:00]} Kf5 {[%emt 0:00:00]} 62. Bd2 {[%emt 0:00:00]} Nc6 {[%emt 0:00:00]} 63. a4 {[%emt 0:00:00]} bxa4+ {[%emt 0:00:00]} 64. Kxa4 {[%emt 0:00:00]} d4 {[%emt 0:00:00]} 65. c4 {[%emt 0:00:00]} Ne5 {[%emt 0:00:00]} 66. Kb5 {[%emt 0:00:00]} Nf3 {[%emt 0:00:00]} 67. Bc1 {[%emt 0:00:00]} Nxg5 {[%emt 0:00:00]} 1/2-1/2

[Event "FIDE Zonal 4-2 Open 2023"]
[Site "Dimbroko"]
[Date "2023.03.30"]
[Round "8.13"]
[White "Koita, Saidou"]
[Black "AKA JUSTIN JEAN-ROBERT KOUMI"]
[Result "1-0"]
[ECO "A01"]
[WhiteElo "1569"]
[BlackElo "1833"]
[Annotator "NA RC COMBH"]
[PlyCount "93"]
[EventDate "2023.03.25"]
[EventType "swiss"]
[EventCountry "IVO"]
[SourceTitle "playchess.com"]
[Source "ChessBase"]
[SourceQuality "1"]
[TimeControl "40/5400+30:1800+30"]

1. e3 {[%emt 0:01:19]} e5 {[%emt 0:00:17]} 2. b3 {[%emt 0:00:10]} d5 {[%emt 0:00:37]} 3. Bb2 {[%emt 0:00:05]} Bd6 {[%emt 0:01:39]} 4. Ne2 {[%emt 0:00:22]} Nf6 {[%emt 0:00:38]} 5. Nbc3 {[%emt 0:00:22]} Bd7 {[%emt 0:02:16]} 6. d4 {[%emt 0:00:50]} e4 {[%emt 0:01:07]} 7. h3 {[%emt 0:01:04]} c6 {[%emt 0:01:18]} 8. Qd2 {[%emt 1:30:18]} Qe7 {[%emt 0:01:04]} 9. g3 {[%emt 0:00:00]} Ba3 {[%emt 0:02:30]} 10. Qc1 {[%emt 0:00:00]} Bd6 {[%emt 0:00:42]} 11. Bg2 {[%emt 0:00:00]} Na6 {[%emt 0:00:41]} 12. Nf4 {[%emt 0:00:00]} g5 {[%emt 0:01:56]} 13. Nfe2 {[%emt 0:00:00]} O-O-O {[%emt 0:01:52]} 14. a3 {[%emt 0:00:00]} h6 {[%emt 0:02:03]} 15. b4 {[%emt 0:00:00]} Nc7 {[%emt 0:01:58]} 16. Na4 {[%emt 0:00:00]} b6 {[%emt 0:01:11]} 17. Qd2 {[%emt 0:00:00]} Kb7 {[%emt 0:01:58]} 18. Nac3 {[%emt 0:00:00]} b5 {[%emt 0:01:33]} 19. Nc1 {[%emt 0:00:00]} Na8 {[%emt 0:00:40]} 20. Nb3 {[%emt 0:00:00]} Nb6 {[%emt 0:00:20]} 21. O-O-O {[%emt 0:00:00]} Nc4 {[%emt 0:00:57]} 22. Qe1 {[%emt 0:00:00]} Ra8 {[%emt 0:02:07]} 23. Nc5+ {[%emt 0:00:00]} Bxc5 {[%emt 0:00:41]} 24. dxc5 {[%emt 0:00:00]} a5 {[%emt 0:00:44]} 25. Rd4 {[%emt 0:00:00]} axb4 {[%emt 0:00:43]} 26. axb4 {[%emt 0:00:00]} Ra7 {[%emt 0:01:57]} 27. Rxc4 {[%emt 0:00:00]} bxc4 {[%emt 0:00:40]} 28. Kd2 {[%emt 0:00:00]} Rb8 {[%emt 0:01:22]} 29. Ne2 {[%emt 0:00:00]} Kc7 {[%emt 0:02:09]} 30. c3 {[%emt 0:00:00]} Ra2 {[%emt 0:01:09]} 31. Qb1 {[%emt 0:00:00]} Rba8 {[%emt 0:00:33]} 32. Nd4 {[%emt 0:00:00]} Be8 {[%emt 0:01:57]} 33. Nf5 {[%emt 0:00:00]} Qf8 {[%emt 0:01:41]} 34. Kc2 {[%emt 0:00:00]} Nd7 {[%emt 0:02:42]} 35. Qd1 {[%emt 0:00:00]} Ne5 {[%emt 0:01:27]} 36. Qd4 {[%emt 0:00:00]} Nd3 {[%emt 0:01:42]} 37. Rb1 {[%emt 0:00:00]} Bd7 {[%emt 0:02:36]} (37... Nxf2 38. Qe5+ Kd7 39. Qf6 $17) 38. Nd6 $19 {[%emt 0:00:00]} R8a3 {[%emt 0:02:52]} 39. Bf1 {[%emt 0:00:00]} Qe7 {[%emt 0:05:18]} 40. Bxd3 {[%emt 0:00:00]} cxd3+ {[%emt 0:02:45]} 41. Kc1 {[%emt 0:00:00]} Ra8 {[%emt 0:31:41]} 42. b5 {[%emt 0:00:00]} R2a4 {[%emt 0:02:48]} 43. b6+ {[%emt 0:00:00]} Kd8 {[%emt 0:07:48]} 44. Qh8+ {[%emt 0:48:00]} Be8 {[%emt 0:37:51]} 45. Qxh6 {[%emt 0:00:00]} R4a5 {[%emt 0:00:00]} 46. c4 {[%emt 0:00:00]} Rxc5 {[%emt 0:00:00]} 47. Bf6 {[%emt 0:00:00]} 1-0